fUSD/lending_fUSD_20260319
["ID","MTS","AMOUNT","RATE_DAILY","PERIOD"]
[408557649,1773888641572,-167.41696439,0.00011873,2]
[408557650,1773888641582,-501.85391642,0.00011873,2]
[408557651,1773888641593,-500.0,0.00011873,2]
[408557652,1773888641603,-500.61001698,0.00011873,2]
[408557653,1773888641613,-500.0,0.00011873,2]
[408557654,1773888641623,-1800.0,0.000119,4]
[408557655,1773888641633,-500.0,0.0001191,2]
[408557656,1773888641643,-500.0,0.0001191,3]
[408557657,1773888641652,-500.0,0.0001191,4]
[408557658,1773888641663,-500.0,0.0001191,5]
[408557659,1773888641673,-500.0,0.0001191,6]
[408557660,1773888641682,-500.0,0.0001191,7]
[408557661,1773888641692,-500.0,0.0001191,8]
[408557662,1773888641702,-500.0,0.0001191,9]
[408557665,1773888641993,-869.12,0.0001191,2]
[408557666,1773888642004,-6933.10826163,0.0001192,2]
[408557667,1773888642014,-1838.72,0.00011921,2]
[408557668,1773888642024,-8852.02255889,0.00012052,2]
[408557669,1773888642033,-500.0,0.00012076,2]
[408557670,1773888642043,-391.19164398,0.00012076,2]
[408557671,1773888642053,-8882.6885148,0.00012076,2]
[408557672,1773888642062,-500.0,0.00012076,2]
[408557673,1773888642072,-500.0,0.00012076,2]
[408557674,1773888642082,-250.0,0.00012076,2]
[408557675,1773888642092,-250.0,0.00012076,2]
[408557676,1773888642101,-500.0,0.00012076,2]
[408557677,1773888642112,-250.0,0.00012076,2]
[408557678,1773888642122,-500.0,0.00012076,2]
[408557679,1773888642132,-250.0,0.00012076,2]
[408557680,1773888642142,-500.0,0.00012076,2]
[408557681,1773888642152,-250.0,0.00012076,2]
[408557682,1773888642162,-500.0,0.00012076,2]
[408557683,1773888642171,-250.0,0.00012076,2]
[408557684,1773888642181,-250.0,0.00012076,2]
[408557685,1773888642191,-500.0,0.00012076,2]
[408557686,1773888642200,-250.0,0.00012076,2]
[408557687,1773888642210,-250.0,0.00012076,2]
[408557688,1773888642220,-500.0,0.00012076,2]
[408557689,1773888642230,-250.0,0.00012076,2]
[408557690,1773888642240,-282.59450799,0.00012076,2]
[408557691,1773888642250,-500.0,0.00012076,2]
[408557692,1773888642259,-250.0,0.00012076,2]
[408557693,1773888642269,-250.0,0.00012076,2]
[408557694,1773888642278,-373.8483694,0.00012076,2]
[408557695,1773888642288,-500.0,0.00012076,2]
[408557696,1773888642298,-500.0,0.00012076,2]
[408557697,1773888642308,-500.0,0.00012076,2]
[408557698,1773888642318,-500.0,0.00012076,2]
[408557699,1773888642328,-151.0,0.00012076,2]
[408557700,1773888642337,-669.13395939,0.00012076,2]
[408557701,1773888642347,-500.0,0.00012085,2]
[408557702,1773888642356,-500.0,0.00012126,2]
[408557703,1773888642366,-9354.83,0.00012126,2]
[408557704,1773888642376,-6933.10826163,0.0001213,2]
[408557705,1773888642385,-500.0,0.00012131,2]
[408557706,1773888642395,-9211.34798985,0.00012131,2]
[408557707,1773888642404,-151.0,0.00012131,2]
[408557708,1773888642414,-869.12,0.00012184,2]
[408557709,1773888642425,-500.0,0.00012186,2]
[408557710,1773888642436,-3769.94226898,0.00012186,2]
[408557711,1773888642451,-151.0,0.00012186,2]
[408557712,1773888642461,-1600.0,0.00012195,2]
[408557713,1773888642470,-10000.0,0.00012198,2]
[408557714,1773888642481,-500.0,0.00012241,2]
[408557715,1773888642490,-151.0,0.00012241,2]
[408557716,1773888642500,-8852.02255889,0.00012273,2]
[408557717,1773888642509,-500.0,0.00012296,2]
[408557718,1773888642522,-151.0,0.00012296,2]
[408557719,1773888642531,-2911.85465878,0.00012308,2]
[408557720,1773888642541,-1309.7347511,0.00012332,2]
[408557721,1773888642551,-6933.10826163,0.0001234,2]
[408557722,1773888642560,-500.0,0.00012351,2]
[408557723,1773888642570,-151.0,0.00012351,2]
[408557724,1773888642580,-200.0,0.00012351,2]
[408557725,1773888642589,-500.0,0.00012359,2]
[408557726,1773888642599,-500.0,0.00012406,2]
[408557727,1773888642609,-151.0,0.00012406,2]
[408557728,1773888642618,-236.35826916,0.00012408,2]
[408557729,1773888642628,-509.80182332,0.00012421,2]
[408557730,1773888642637,-501.83365721,0.00012421,2]
[408557731,1773888642647,-1000.0,0.00012421,2]
[408557732,1773888642657,-313.87862379,0.00012421,2]
[408557733,1773888642667,-375.44189071,0.00012421,2]
[408557734,1773888642677,-1000.0,0.00012421,2]
[408557735,1773888642687,-1000.0,0.00012421,2]
[408557736,1773888642696,-622.82008858,0.00012421,2]
[408557737,1773888642706,-869.12,0.00012458,2]
[408557738,1773888642715,-500.0,0.00012461,2]
[408557739,1773888642725,-151.0,0.00012461,2]
[408557740,1773888642736,-500.0,0.00012516,2]
[408557741,1773888642745,-165.34358944,0.00012516,2]
[408557742,1773888642755,-462.08,0.00012517,2]
[408557743,1773888642765,-6933.10826163,0.0001255,2]
[408557744,1773888642775,-500.0,0.00012571,2]
[408557745,1773888642786,-854.18,0.000126,2]
[408557746,1773888642796,-396.44046237,0.00012612,2]
[408557747,1773888642805,-693.89191589,0.00012624,2]
[408557748,1773888642815,-500.0,0.00012626,2]
[408557749,1773888642825,-503.4765885,0.00012633,2]
[408557750,1773888642836,-193.0,0.0001265,2]
[408557751,1773888642846,-250.0,0.0001265,2]
[408557752,1773888642856,-5000.0,0.0001265,2]
[408557753,1773888642866,-300.0,0.0001265,2]
[408557754,1773888642876,-250.0,0.0001265,2]
[408557755,1773888642886,-500.0,0.00012681,2]
[408557756,1773888642896,-253.16,0.000127,2]
[408557757,1773888642906,-869.12,0.00012732,2]
[408557759,1773888642915,-530.74025783,0.00012736,2]
[408557761,1773888642925,-6933.10826163,0.00012759,2]
[408557764,1773888642934,-255.0,0.00012775,2]
[408557765,1773888642944,-1680.0,0.00012869,2]
[408557766,1773888642954,-193.59445064,0.0001287,2]
[408557767,1773888642963,-5000.0,0.0001287,2]
[408557768,1773888642973,-200.0,0.00012899,2]
[408557769,1773888642982,-1000.70249229,0.00012968,2]
[408557770,1773888642992,-1500.0,0.00012968,2]
[408557772,1773888643002,-504.04033637,0.00012968,2]
[408557773,1773888643012,-6933.10826163,0.00012969,2]
[408557774,1773888643022,-869.12,0.00013006,2]
[408557775,1773888643031,-236.35826916,0.00013107,2]
[408557776,1773888643041,-500.0,0.00013123,2]
[408557777,1773888643051,-3958.8157431,0.00013134,2]
[408557778,1773888643060,-106759.7483417,0.00013134,2]
[408557779,1773888643070,-6933.10826163,0.00013179,2]
[408557780,1773888643080,-869.12,0.0001328,2]
[408557781,1773888643090,-3979.0,0.0001331,5]
[408557782,1773888643100,-3180.0,0.0001331,5]
[408557783,1773888643109,-6933.10826163,0.00013389,2]
[408557784,1773888643119,-401.54765119,0.00013397,2]
[408557785,1773888643129,-200.0,0.00013447,2]
[408557786,1773888643138,-401.54765119,0.00013452,2]
[408557787,1773888643148,-401.54765119,0.00013507,2]
[408557788,1773888643157,-2000.0,0.00013516,2]
[408557789,1773888643167,-150.75759761,0.00013534,2]
[408557790,1773888643177,-500.0,0.00013537,2]
[408557791,1773888643187,-500.0,0.00013537,2]
[408557792,1773888643196,-500.0,0.00013537,2]
[408557793,1773888643206,-500.0,0.00013537,2]
[408557794,1773888643215,-500.0,0.00013537,2]
[408557795,1773888643225,-500.0,0.00013537,2]
[408557796,1773888643234,-500.0,0.00013537,2]
[408557797,1773888643243,-500.0,0.00013537,2]
[408557798,1773888643252,-214.94352647,0.00013537,2]
[408557799,1773888643261,-500.0,0.00013537,2]
[408557800,1773888643271,-500.0,0.00013537,2]
[408557801,1773888643280,-500.0,0.00013537,2]
[408557802,1773888643289,-500.0,0.00013537,2]
[408557803,1773888643299,-500.0,0.00013537,2]
[408557804,1773888643308,-500.0,0.00013537,2]
[408557805,1773888643317,-500.0,0.00013537,2]
[408557806,1773888643327,-500.0,0.00013537,2]
[408557807,1773888643336,-500.0,0.00013537,2]
[408557808,1773888643345,-500.0,0.00013537,2]
[408557809,1773888643354,-500.0,0.00013537,2]
[408557810,1773888643363,-500.0,0.00013537,2]
[408557811,1773888643372,-500.0,0.00013537,2]
[408557812,1773888643381,-500.0,0.00013537,2]
[408557814,1773888643390,-255.16033753,0.00013537,2]
[408557816,1773888643399,-500.0,0.00013537,2]
[408557818,1773888643409,-520.81453038,0.00013537,2]
[408557820,1773888643417,-500.0,0.00013537,2]
[408557822,1773888643427,-500.0,0.00013537,2]
[408557824,1773888643436,-500.0,0.00013537,2]
[408557826,1773888643449,-500.0,0.00013537,2]
[408557828,1773888643458,-500.0,0.00013537,2]
[408557830,1773888643467,-500.0,0.00013537,2]
[408557832,1773888643477,-500.0,0.00013537,2]
[408557834,1773888643486,-500.0,0.00013537,2]
[408557836,1773888643495,-500.0,0.00013537,2]
[408557838,1773888643504,-500.0,0.00013537,2]
[408557840,1773888643515,-500.0,0.00013537,2]
[408557842,1773888643524,-500.0,0.00013537,2]
[408557844,1773888643534,-500.0,0.00013537,2]
[408557846,1773888643543,-500.0,0.00013537,2]
[408557848,1773888643554,-500.0,0.00013537,2]
[408557850,1773888643564,-500.0,0.00013537,2]
[408557852,1773888643574,-475.0,0.00013537,2]
[408557854,1773888643584,-500.0,0.00013537,2]
[408557857,1773888643593,-500.0,0.00013537,2]
[408557859,1773888643603,-500.0,0.00013537,2]
[408557860,1773888643612,-475.0,0.00013537,2]
[408557862,1773888643621,-500.0,0.00013537,2]
[408557864,1773888643630,-500.0,0.00013537,2]
[408557866,1773888643639,-500.0,0.00013537,2]
[408557867,1773888643648,-475.0,0.00013537,2]
[408557868,1773888643658,-261.00219026,0.00013537,2]
[408557869,1773888643667,-500.0,0.00013537,2]
[408557870,1773888643677,-500.0,0.00013537,2]
[408557872,1773888643686,-364.3001579,0.00013537,2]
[408557874,1773888643695,-475.0,0.00013537,2]
[408557876,1773888643705,-500.0,0.00013537,2]
[408557878,1773888643714,-500.0,0.00013537,2]
[408557880,1773888643723,-475.0,0.00013537,2]
[408557881,1773888643733,-500.0,0.00013537,2]
[408557882,1773888643742,-500.0,0.00013537,2]
[408557883,1773888643752,-500.0,0.00013537,2]
[408557884,1773888643761,-500.0,0.00013537,2]
[408557885,1773888643771,-150.0,0.00013537,2]
[408557886,1773888643780,-500.0,0.00013537,2]
[408557887,1773888643789,-475.0,0.00013537,2]
[408557888,1773888643799,-500.0,0.00013537,2]
[408557889,1773888643809,-500.0,0.00013537,2]
[408557890,1773888643818,-500.0,0.00013537,2]
[408557891,1773888643827,-172.33361758,0.00013537,2]
[408557892,1773888643837,-475.0,0.00013537,2]
[408557893,1773888643847,-500.0,0.00013537,2]
[408557894,1773888643856,-461.65354003,0.00013537,2]
[408557895,1773888643866,-475.0,0.00013537,2]
[408557896,1773888643875,-190.77647721,0.00013537,2]
[408557897,1773888643884,-475.0,0.00013537,2]
[408557898,1773888643894,-500.0,0.00013537,2]
[408557899,1773888643905,-475.0,0.00013537,2]
[408557900,1773888643914,-500.0,0.00013537,2]
[408557901,1773888643925,-475.0,0.00013537,2]
[408557902,1773888643936,-475.0,0.00013537,2]
[408557903,1773888643946,-150.0,0.00013537,2]
[408557904,1773888643957,-150.0,0.00013537,2]
[408557905,1773888643968,-500.0,0.00013537,2]
[408557906,1773888643979,-150.0,0.00013537,2]
[408557907,1773888643990,-239.07414574,0.00013537,2]
[408557908,1773888643999,-500.0,0.00013537,2]
[408557909,1773888644009,-150.0,0.00013537,2]
[408557910,1773888644018,-500.0,0.00013537,2]
[408557911,1773888644027,-150.0,0.00013537,2]
[408557912,1773888644036,-500.0,0.00013537,2]
[408557913,1773888644046,-150.94227271,0.00013537,2]
[408557914,1773888644055,-227.30575448,0.00013537,2]
[408557915,1773888644065,-257.5653502,0.00013537,2]
[408557916,1773888644074,-475.0,0.00013537,2]
[408557917,1773888644083,-623.58090901,0.00013537,2]
[408557918,1773888644093,-475.0,0.00013537,2]
[408557919,1773888644102,-475.0,0.00013537,2]
[408557920,1773888644113,-475.0,0.00013537,2]
[408557921,1773888644123,-475.0,0.00013537,2]
[408557922,1773888644134,-475.0,0.00013537,2]
[408557923,1773888644143,-475.0,0.00013537,2]
[408557924,1773888644153,-475.0,0.00013537,2]
[408557925,1773888644163,-475.0,0.00013537,2]
[408557926,1773888644172,-475.0,0.00013537,2]
[408557927,1773888644181,-475.0,0.00013537,2]
[408557928,1773888644191,-480.79317434,0.00013537,2]
[408557929,1773888644200,-500.0,0.00013537,2]
[408557930,1773888644210,-501.61437421,0.00013537,2]
[408557931,1773888644220,-500.0,0.00013537,2]
[408557932,1773888644230,-500.0,0.00013537,2]
[408557933,1773888644239,-500.0,0.00013537,2]
[408557934,1773888644250,-500.0,0.00013537,2]
[408557935,1773888644261,-482.59231839,0.00013537,2]
[408557936,1773888644271,-500.0,0.00013537,2]
[408557937,1773888644282,-500.0,0.00013537,2]
[408557938,1773888644295,-500.0,0.00013537,2]
[408557939,1773888644303,-500.0,0.00013537,2]
[408557940,1773888644312,-500.0,0.00013537,2]
[408557941,1773888644322,-500.0,0.00013537,2]
[408557942,1773888644332,-500.0,0.00013537,2]
[408557943,1773888644342,-500.0,0.00013537,2]
[408557944,1773888644352,-500.0,0.00013537,2]
[408557945,1773888644362,-500.0,0.00013537,2]
[408557946,1773888644371,-500.0,0.00013537,2]
[408557947,1773888644380,-500.0,0.00013537,2]
[408557948,1773888644390,-500.0,0.00013537,2]
[408557949,1773888644400,-500.0,0.00013537,2]
[408557950,1773888644410,-500.0,0.00013537,2]
[408557951,1773888644421,-500.0,0.00013537,2]
[408557952,1773888644485,-500.0,0.00013537,2]
[408557953,1773888644495,-500.0,0.00013537,2]
[408557954,1773888644504,-500.0,0.00013537,2]
[408557955,1773888644513,-417.93350754,0.00013537,2]
[408557956,1773888644524,-1600.0,0.0001355,2]
[408557957,1773888644533,-869.12,0.00013554,2]
[408557958,1773888644543,-401.54765119,0.00013562,2]
[408557959,1773888644551,-6933.10826163,0.00013599,2]
[408557960,1773888644561,-401.54765119,0.00013616,2]
[408557961,1773888644570,-1044.0,0.00013659,2]
[408557962,1773888644579,-1347.416,0.00013659,2]
[408557963,1773888644588,-620.0,0.00013659,2]
[408557964,1773888644598,-150.174,0.00013659,2]
[408557965,1773888644606,-1261.0,0.00013659,2]
[408557966,1773888644615,-1215.0,0.00013659,2]
[408557967,1773888644624,-414.768,0.00013659,2]
[408557968,1773888644633,-2465.0,0.00013659,2]
[408557969,1773888644642,-401.54765119,0.00013671,2]
[408557970,1773888644651,-235.8476154,0.0001369,2]
[408557971,1773888644660,-500.0,0.00013695,2]
[408557972,1773888644670,-500.0,0.00013695,2]
[408557973,1773888644679,-500.0,0.00013695,2]
[408557974,1773888644688,-500.0,0.00013695,2]
[408557975,1773888644697,-500.0,0.00013695,2]
[408557976,1773888644706,-500.0,0.00013695,2]
[408557977,1773888644715,-500.0,0.00013695,2]
[408557978,1773888644723,-500.0,0.00013695,2]
[408557979,1773888644732,-500.0,0.00013695,2]
[408557980,1773888644741,-500.0,0.00013695,2]
[408557981,1773888644750,-500.0,0.00013695,2]
[408557982,1773888644759,-500.0,0.00013695,2]
[408557983,1773888644769,-628.18863757,0.00013695,2]
[408557984,1773888644778,-500.0,0.00013695,2]
[408557985,1773888644787,-622.70708888,0.00013695,2]
[408557986,1773888644796,-500.0,0.00013695,2]
[408557987,1773888644805,-500.0,0.00013695,2]
[408557988,1773888644814,-500.0,0.00013695,2]
[408557989,1773888644823,-500.0,0.00013695,2]
[408557990,1773888644832,-500.0,0.00013695,2]
[408557991,1773888644841,-500.0,0.00013695,2]
[408557992,1773888644850,-517.67691224,0.00013695,2]
[408557993,1773888644859,-150.0,0.00013695,2]
[408557994,1773888644868,-500.0,0.00013695,2]
[408557995,1773888644877,-500.0,0.00013695,2]
[408557996,1773888644886,-500.0,0.00013695,2]
[408557997,1773888644896,-500.0,0.00013695,2]
[408557998,1773888644905,-500.0,0.00013695,2]
[408557999,1773888644914,-419.56029481,0.00013695,2]
[408558000,1773888644923,-150.0,0.00013695,2]
[408558001,1773888644932,-150.37263222,0.00013695,2]
[408558002,1773888644940,-500.0,0.00013695,2]
[408558003,1773888644950,-500.0,0.00013695,2]
[408558004,1773888644959,-500.0,0.00013695,2]
[408558005,1773888644968,-500.0,0.00013695,2]
[408558006,1773888644977,-500.0,0.00013695,2]
[408558007,1773888644986,-500.0,0.00013695,2]
[408558008,1773888644995,-500.0,0.00013695,2]
[408558009,1773888645004,-500.0,0.00013695,2]
[408558010,1773888645013,-500.0,0.00013695,2]
[408558011,1773888645023,-500.0,0.00013695,2]
[408558012,1773888645033,-500.0,0.00013695,2]
[408558013,1773888645042,-500.0,0.00013695,2]
[408558014,1773888645051,-500.0,0.00013695,2]
[408558015,1773888645060,-500.0,0.00013695,2]
[408558016,1773888645069,-500.0,0.00013695,2]
[408558017,1773888645079,-500.0,0.00013695,2]
[408558018,1773888645087,-500.0,0.00013695,2]
[408558019,1773888645099,-500.0,0.00013695,2]
[408558020,1773888645108,-500.0,0.00013695,2]
[408558021,1773888645117,-500.0,0.00013695,2]
[408558022,1773888645127,-500.0,0.00013695,2]
[408558023,1773888645137,-500.0,0.00013695,2]
[408558024,1773888645146,-500.0,0.00013695,2]
[408558025,1773888645156,-500.0,0.00013695,2]
[408558026,1773888645166,-500.0,0.00013695,2]
[408558027,1773888645175,-500.0,0.00013695,2]
[408558028,1773888645184,-500.0,0.00013695,2]
[408558029,1773888645196,-500.0,0.00013695,2]
[408558030,1773888645207,-500.0,0.00013695,2]
[408558031,1773888645219,-500.0,0.00013695,2]
[408558032,1773888645230,-500.0,0.00013695,2]
[408558033,1773888645240,-500.0,0.00013695,2]
[408558034,1773888645250,-500.0,0.00013695,2]
[408558035,1773888645260,-500.0,0.00013695,2]
[408558036,1773888645270,-320.05942927,0.00013695,2]
[408558037,1773888645279,-500.0,0.00013695,2]
[408558038,1773888645289,-451.64334977,0.00013695,2]
[408558039,1773888645298,-500.0,0.00013695,2]
[408558040,1773888645308,-206.79155437,0.00013695,2]
[408558041,1773888645317,-150.0,0.00013695,2]
[408558042,1773888645328,-500.0,0.00013695,2]
[408558043,1773888645340,-500.0,0.00013695,2]
[408558044,1773888645350,-500.0,0.00013695,2]
[408558045,1773888645360,-500.0,0.00013695,2]
[408558046,1773888645369,-500.0,0.00013695,2]
[408558047,1773888645379,-238.49988002,0.00013695,2]
[408558048,1773888645388,-500.0,0.00013695,2]
[408558049,1773888645398,-150.0,0.00013695,2]
[408558050,1773888645407,-510.84159048,0.00013695,2]
[408558051,1773888645416,-909.0,0.00013695,2]
[408558052,1773888645425,-500.0,0.00013695,2]
[408558053,1773888645434,-909.0,0.00013695,2]
[408558054,1773888645448,-500.0,0.00013695,2]
[408558055,1773888645457,-909.0,0.00013695,2]
[408558056,1773888645467,-500.0,0.00013695,2]
[408558057,1773888645476,-909.0,0.00013695,2]
[408558058,1773888645487,-500.0,0.00013695,2]
[408558059,1773888645499,-909.0,0.00013695,2]
[408558060,1773888645512,-500.0,0.00013695,2]
[408558061,1773888645523,-909.0,0.00013695,2]
[408558062,1773888645533,-500.0,0.00013695,2]
[408558063,1773888645544,-909.0,0.00013695,2]
[408558064,1773888645555,-500.0,0.00013695,2]
[408558065,1773888645566,-909.0,0.00013695,2]
[408558066,1773888645576,-484.38346012,0.00013695,2]
[408558067,1773888645587,-909.0,0.00013695,2]
[408558068,1773888645596,-909.0,0.00013695,2]
[408558069,1773888645607,-909.0,0.00013695,2]
[408558070,1773888645617,-909.0,0.00013695,2]
[408558071,1773888645626,-909.0,0.00013695,2]
[408558072,1773888645635,-909.0,0.00013695,2]
[408558073,1773888645644,-909.0,0.00013695,2]
[408558074,1773888645654,-909.0,0.00013695,2]
[408558075,1773888645663,-909.0,0.00013695,2]
[408558076,1773888645674,-909.0,0.00013695,2]
[408558077,1773888645685,-909.0,0.00013695,2]
[408558078,1773888645695,-909.0,0.00013695,2]
[408558079,1773888645706,-909.0,0.00013695,2]
[408558080,1773888645716,-909.0,0.00013695,2]
[408558081,1773888645726,-909.0,0.00013695,2]
[408558082,1773888645735,-910.07406063,0.00013695,2]
[408558083,1773888645745,-500.0,0.00013695,2]
[408558084,1773888645755,-500.0,0.00013695,2]
[408558085,1773888645764,-500.0,0.00013695,2]
[408558086,1773888645772,-596.68097798,0.00013695,2]
[408558087,1773888645781,-500.0,0.00013695,2]
[408558088,1773888645790,-500.0,0.00013695,2]
[408558089,1773888645799,-500.0,0.00013695,2]
[408558090,1773888645808,-500.0,0.00013695,2]
[408558091,1773888645817,-555.13507274,0.00013695,2]
[408558092,1773888645826,-150.0,0.00013695,2]
[408558093,1773888645835,-150.0,0.00013695,2]
[408558094,1773888645844,-150.0,0.00013695,2]
[408558095,1773888645854,-280.14759695,0.00013695,2]
[408558096,1773888645863,-500.0,0.00013698,2]
[408558097,1773888645873,-500.0,0.00013698,2]
[408558098,1773888645883,-500.0,0.00013698,2]
[408558099,1773888645893,-500.0,0.00013698,2]
[408558100,1773888645902,-500.79338971,0.00013698,2]
[408558101,1773888645912,-500.0,0.00013698,2]
[408558102,1773888645922,-500.0,0.00013698,2]
[408558103,1773888645932,-500.0,0.00013698,2]
[408558104,1773888645942,-507.21704968,0.00013698,2]
[408558105,1773888645951,-500.0,0.00013698,2]
[408558106,1773888645961,-500.0,0.00013698,2]
[408558107,1773888645972,-500.0,0.00013698,2]
[408558108,1773888645983,-505.19692822,0.00013698,2]
[408558109,1773888645992,-500.0,0.00013698,2]
[408558110,1773888646003,-500.0,0.00013698,2]
[408558111,1773888646011,-500.0,0.00013698,2]
[408558112,1773888646021,-308.11684657,0.00013698,2]
[408558113,1773888646031,-500.0,0.00013698,2]
[408558114,1773888646040,-500.0,0.00013698,2]
[408558115,1773888646051,-500.0,0.00013698,2]
[408558116,1773888646061,-500.0,0.00013698,2]
[408558117,1773888646071,-500.0,0.00013698,2]
[408558118,1773888646080,-500.0,0.00013698,2]
[408558119,1773888646089,-500.0,0.00013698,2]
[408558120,1773888646098,-507.46942592,0.00013698,2]
[408558121,1773888646107,-500.0,0.00013698,2]
[408558122,1773888646119,-500.0,0.00013698,2]
[408558123,1773888646128,-500.0,0.00013698,2]
[408558124,1773888646139,-500.0,0.00013698,2]
[408558125,1773888646150,-500.0,0.00013698,2]
[408558126,1773888646160,-500.0,0.00013698,2]
[408558127,1773888646170,-500.0,0.00013698,2]
[408558128,1773888646179,-515.1515975,0.00013698,2]
[408558129,1773888646189,-500.0,0.00013698,2]
[408558130,1773888646199,-500.0,0.00013698,2]
[408558131,1773888646208,-500.0,0.00013698,2]
[408558132,1773888646218,-501.79858998,0.00013698,2]
[408558133,1773888646228,-500.0,0.00013698,2]
[408558134,1773888646238,-500.0,0.00013698,2]
[408558135,1773888646247,-500.0,0.00013698,2]
[408558136,1773888646256,-500.0,0.00013698,2]
[408558137,1773888646265,-500.0,0.00013698,2]
[408558138,1773888646274,-500.0,0.00013698,2]
[408558139,1773888646283,-500.0,0.00013698,2]
[408558140,1773888646292,-500.0,0.00013698,2]
[408558141,1773888646301,-500.0,0.00013698,2]
[408558142,1773888646310,-500.0,0.00013698,2]
[408558143,1773888646319,-500.0,0.00013698,2]
[408558144,1773888646328,-500.0,0.00013698,2]
[408558145,1773888646337,-500.0,0.00013698,2]
[408558146,1773888646346,-500.0,0.00013698,2]
[408558147,1773888646355,-300.39352104,0.00013698,2]
[408558148,1773888646364,-500.0,0.00013698,2]
[408558149,1773888646373,-500.0,0.00013698,2]
[408558150,1773888646382,-500.0,0.00013698,2]
[408558151,1773888646391,-500.0,0.00013698,2]
[408558152,1773888646401,-500.0,0.00013698,2]
[408558153,1773888646410,-500.0,0.00013698,2]
[408558154,1773888646419,-500.0,0.00013698,2]
[408558155,1773888646428,-500.0,0.00013698,2]
[408558156,1773888646437,-533.72483612,0.00013698,2]
[408558157,1773888646449,-500.0,0.00013698,2]
[408558158,1773888646458,-500.0,0.00013698,2]
[408558159,1773888646468,-167.7303612,0.00013698,2]
[408558160,1773888646477,-500.0,0.00013698,2]
[408558161,1773888646487,-500.0,0.00013698,2]
[408558162,1773888646496,-500.0,0.00013698,2]
[408558163,1773888646505,-500.0,0.00013698,2]
[408558164,1773888646515,-500.0,0.00013698,2]
[408558166,1773888646525,-500.0,0.00013698,2]
[408558168,1773888646534,-510.13276666,0.00013698,2]
[408558169,1773888646543,-500.0,0.00013698,2]
[408558170,1773888646552,-500.0,0.00013698,2]
[408558171,1773888646562,-504.39062474,0.00013698,2]
[408558172,1773888646571,-500.0,0.00013698,2]
[408558174,1773888646581,-500.0,0.00013698,2]
[408558175,1773888646591,-500.0,0.00013698,2]
[408558176,1773888646600,-500.0,0.00013698,2]
[408558177,1773888646609,-276.35546666,0.00013698,2]
[408558178,1773888646619,-151.0,0.00013698,2]
[408558179,1773888646630,-151.0,0.00013698,2]
[408558180,1773888646639,-151.0,0.00013698,2]
[408558181,1773888646648,-500.0,0.00013698,2]
[408558182,1773888646657,-500.0,0.00013698,2]
[408558183,1773888646667,-500.0,0.00013698,2]
[408558184,1773888646676,-500.0,0.00013698,2]
[408558185,1773888646685,-500.0,0.00013698,2]
[408558186,1773888646695,-500.0,0.00013698,2]
[408558187,1773888646704,-500.0,0.00013698,2]
[408558188,1773888646713,-500.0,0.00013698,2]
[408558189,1773888646722,-500.0,0.00013698,2]
[408558190,1773888646731,-500.0,0.00013698,2]